[Event "Romanian Championship 2024"]
[Site "Eforie Nord"]
[Date "2024.02.25"]
[Round "2.8"]
[White "Pisu, Robert-Daniel"]
[Black "Stoleriu, George"]
[Result "0-1"]
[ECO "A40"]
[WhiteElo "2154"]
[BlackElo "2391"]
[Annotator "TA"]
[PlyCount "124"]
[EventDate "2024.02.24"]
[EventType "swiss"]
[EventCountry "ROU"]
[SourceTitle "playchess.com"]
[Source "ChessBase"]
[SourceQuality "1"]
[TimeControl "40/5400+30:900+30"]

{[%evp 19,124,-19,-19,-23,-29,-18,-27,-27,-31,-36,-22,-25,-4,-11,-5,0,-12,-35,-26,-48,0,-33,-35,-48,-59,-60,-57,-93,-84,-91,-91,-95,-105,-114,-117,-119,-102,-120,-114,-123,-141,-156,-126,-128,-114,-119,-124,-130,-118,-115,-133,-106,-151,-147,-114,-110,-109,-107,-59,-63,-67,-193,-193,-171,-183,-175,-82,-169,-54,-78,-72,-72,-72,-72,-79,-79,-80,-72,-72,-176,-8,-72,0,-200,-150,-116,-200,-426,-426,-458,-452,-1495,-426,-432,-397,-29971,-29973,-29973,-29974,-29975,-29976,-29976,-29977,-29976,-29974,-29988,-29966]} 1. d4 {[%emt 0:00:03]} e6 {[%emt 0:00:06]} 2. c4 {[%emt 0:00:10]} b6 {[%emt 0:00:10]} 3. a3 {[%emt 0:01:18]} Bb7 {[%emt 0:00:13]} 4. Nc3 {[%emt 0:00:06]} f5 {[%emt 0:00:24]} 5. Nf3 {[%emt 0:01:39]} Nf6 {[%emt 0:01:03]} 6. d5 {[%emt 0:06:24]} Na6 {[%emt 0:07:23]} 7. dxe6 {[%emt 0:21:30] A40: Unusual replies to 1 d4.} dxe6 {[%emt 0:00:36]} 8. Bf4 {[%emt 0:00:07]} Bd6 {[%emt 0:09:54]} 9. Bxd6 {[%emt 0:02:16]} Qxd6 $146 {[%emt 0:00:29]} ({Predecessor:} 9... cxd6 10. e3 O-O 11. Be2 Nc5 12. O-O Nfe4 13. Rc1 Qf6 14. Qc2 Qg6 15. Rfd1 f4 16. exf4 Rxf4 {0-1 Wiechert,H (2218)-Schmitzer,K (2318) BL2-Ost 0001 2000 (1.5)}) 10. Qxd6 {[%emt 0:12:36]} cxd6 {[%emt 0:00:57]} 11. Nd4 {[%emt 0:04:45]} Ke7 {[%emt 0:01:46]} 12. e3 {[%emt 0:01:48]} g6 {[%emt 0:02:21]} 13. f3 {[%emt 0:20:42]} Nc5 {[%emt 0:11:46]} 14. Be2 {[%emt 0:03:09]} Rac8 {[%emt 0:05:39]} 15. Rd1 {[%emt 0:04:44]} a6 {[%emt 0:02:32]} 16. Kf2 {[%emt 0:02:33]} Rhd8 {[%emt 0:04:38]} 17. b4 {[%emt 0:05:23]} Ncd7 {[%emt 0:00:09]} 18. Na4 {[%emt 0:00:12]} Rc7 {[%emt 0:18:03]} 19. Rd2 {[%emt 0:02:36]} Rdc8 {[%emt 0:01:22]} (19... d5 $15 20. c5 bxc5 21. Nxc5 Nxc5 22. bxc5 Rxc5) 20. Rhd1 {[%emt 0:00:36]} d5 {[%emt 0:01:10]} 21. cxd5 {[%emt 0:00:26]} Nxd5 {[%emt 0:00:06]} 22. b5 {[%emt 0:02:30]} a5 {[%emt 0:08:10]} 23. Nc6+ {[%emt 0:02:00]} Bxc6 {[%emt 0:02:03]} 24. bxc6 {[%emt 0:00:01]} Rxc6 {[%emt 0:01:09]} 25. Bb5 {[%emt 0:00:06]} R6c7 {[%emt 0:00:37]} 26. e4 {[%emt 0:04:41]} fxe4 {[%emt 0:01:15]} 27. fxe4 {[%emt 0:00:17]} Rf8+ {[%emt 0:03:03]} 28. Kg1 {[%emt 0:00:35]} N5f6 {[%emt 0:00:04]} 29. Rd6 {[%emt 0:00:51]} Rb8 {[%emt 0:02:02]} (29... Nxe4 $2 {loses.} 30. Rxd7+ Rxd7 31. Rxd7+ Kf6 32. Bd3 $18 (32. Nxb6 Rb8 $18) (32. Rxh7 Rc8 $18)) 30. h3 {[%emt 0:00:48]} Ne5 {[%emt 0:13:53]} (30... Nxe4 $2 31. Rxd7+ Rxd7 32. Rxd7+ Kf6 33. Rxh7 $18) 31. Rxb6 {[%emt 0:00:17]} Rxb6 {[%emt 0:00:04]} 32. Nxb6 {[%emt 0:00:04]} Rc5 {[%emt 0:01:13]} 33. a4 {[%emt 0:01:12]} Nxe4 {[%emt 0:00:26]} 34. Nd7 {[%emt 0:00:32]} Rxb5 $1 {[%emt 0:01:14]} 35. axb5 {[%emt 0:00:01]} Nxd7 {[%emt 0:00:05]} 36. Ra1 {[%emt 0:00:04]} Nd6 {[%emt 0:01:49]} 37. Rxa5 {[%emt 0:00:05]} Nc8 {[%emt 0:00:29]} 38. Ra1 {[%emt 0:01:30]} Ndb6 {[%emt 0:00:22]} (38... e5 $17 39. Kf2 Nd6) 39. Rc1 $15 {[%emt 0:00:20]} Kd7 {[%emt 0:00:24]} 40. Kf2 {[%emt 0:00:00]} (40. Rf1 $15) 40... Nd6 $19 {[%emt 0:00:00]} 41. Rb1 {[%emt 0:05:48]} e5 {[%emt 0:04:48]} 42. h4 {[%emt 0:04:28]} h5 {[%emt 0:03:32]} (42... Nd5 $19 {Hoping for ...e4.} 43. h5 gxh5) 43. Rb3 {[%emt 0:01:57]} (43. g4 $17 {was worth a try.}) 43... Nf5 {[%emt 0:02:11]} ({Black should play} 43... Ke6 $19 44. Kf1 e4) 44. Rd3+ {[%emt 0:00:39]} Ke6 {[%emt 0:02:13]} 45. Rc3 {[%emt 0:00:20]} Ne7 {[%emt 0:05:18]} (45... Nxh4 $2 {perishes.} 46. Rc6+ Kd5 47. Rxb6 $18) 46. Kf3 {[%emt 0:03:24]} Kf5 {[%emt 0:00:30]} 47. Rc5 {[%emt 0:00:40]} Ned5 {[%emt 0:00:29]} 48. Rc6 {[%emt 0:02:18]} e4+ {[%emt 0:00:04]} 49. Kg3 {[%emt 0:00:22]} (49. Ke2 $17 {might work better.}) 49... Na4 $2 {[%emt 0:01:02]} (49... e3 $1 $19 {aiming for ...Ke4.} 50. Kf3 Ke5 51. Rxg6 Kd4) 50. Rd6 {[%emt 0:00:42] [#]} (50. Kf2 $11 {keeps the balance.}) 50... Nab6 {[%emt 0:00:08]} (50... Ndb6 $1 $17) 51. Rc6 $1 $19 {[%emt 0:00:43] [#]} e3 $1 {[%emt 0:00:04]} 52. Kf3 {[%emt 0:00:10]} Nd7 {[%emt 0:00:02]} 53. Rc8 $2 {[%emt 0:00:59]} (53. Ke2) 53... Ne5+ $19 {[%emt 0:00:13]} 54. Ke2 {[%emt 0:00:07]} Ke4 {[%emt 0:01:16]} 55. g3 {[%emt 0:00:19]} (55. Kf1 $142 Kd4 56. Rg8) 55... Kd4 {[%emt 0:00:35]} (55... g5 $142 {( -> ...gxh4)} 56. b6 Nxb6) 56. Rd8 $19 {[%emt 0:00:26]} Nc4 {[%emt 0:00:26]} 57. Rg8 $2 {[%emt 0:01:07]} (57. Kf3 $19) 57... Nc3+ {[%emt 0:00:22]} 58. Ke1 {[%emt 0:00:03]} Ne5 {[%emt 0:00:16]} 59. Rd8+ {[%emt 0:00:18]} Ke4 {[%emt 0:00:03]} 60. Re8 {[%emt 0:00:35]} Nxb5 {[%emt 0:00:05]} 61. Re7 {[%emt 0:00:17]} Nd4 {[%emt 0:00:26]} 62. Re8 {[%emt 0:00:09]} Nf5 {[%emt 0:00:09]} 0-1

[Event "Romanian Championship 2024"]
[Site "Eforie Nord"]
[Date "2024.02.25"]
[Round "2.9"]
[White "Radu, David Cr."]
[Black "Manolache, Marius"]
[Result "1/2-1/2"]
[ECO "B07"]
[WhiteElo "2142"]
[BlackElo "2387"]
[Annotator "TA"]
[PlyCount "109"]
[EventDate "2024.02.24"]
[EventType "swiss"]
[EventCountry "ROU"]
[SourceTitle "playchess.com"]
[Source "ChessBase"]
[SourceQuality "1"]
[TimeControl "40/5400+30:900+30"]

{[%evp 13,109,43,67,51,84,59,99,87,94,98,118,111,111,97,85,89,156,149,155,135,127,110,101,92,108,112,109,112,115,104,105,111,110,111,126,131,129,124,140,147,147,141,187,150,150,150,150,143,143,143,164,175,194,183,199,185,178,175,184,191,196,206,201,91,142,145,157,136,135,141,154,154,187,99,185,229,237,231,91,233,230,152,152,154,147,131,204,204,218,106,322,0,0,0,0,0,0,0]} 1. e4 {[%emt 0:00:08]} c5 {[%emt 0:00:09]} 2. c3 {[%emt 0:00:30]} d6 {[%emt 0:00:41]} 3. d4 {[%emt 0:00:54]} Nf6 {[%emt 0:00:06]} 4. Bd3 {[%emt 0:00:07]} g6 {[%emt 0:00:38]} 5. Nf3 {[%emt 0:02:39]} Bg7 {[%emt 0:00:21]} 6. h3 {[%emt 0:01:24]} O-O {[%emt 0:00:26]} 7. O-O {[%emt 0:00:09]} Nfd7 {[%emt 0:01:32]} 8. d5 {[%emt 0:17:18]} Qc7 {[%emt 0:04:41]} 9. Qe2 {[%emt 0:04:59]} Nb6 {[%emt 0:01:42]} 10. a4 {[%emt 0:01:55][%cal Ba2a4,Ba4a5][%mdl 32] White is better.} e5 {[%emt 0:11:36]} 11. Na3 {[%emt 0:09:45] a5 would now be deadly.} Qe7 {[%emt 0:08:47]} 12. a5 {[%emt 0:05:36]} N6d7 {[%emt 0:00:04]} 13. Nb5 {[%emt 0:08:09] Hoping for Nc7.} a6 {[%emt 0:14:08]} 14. Na3 {[%emt 0:11:38]} Nf6 {[%emt 0:11:44]} (14... b6 $142) 15. Nc4 {[%emt 0:03:10]} Nbd7 {[%emt 0:00:09]} 16. g4 {[%emt 0:03:25] Prevents Nh5.} Rb8 {[%emt 0:01:41]} 17. Bg5 {[%emt 0:06:17][%cal Bc1g5,Bg5h4,Bh4g3][%mdl 32]} h6 {[%emt 0:02:27]} 18. Bh4 {[%emt 0:00:32] White has more active pieces.} Re8 {[%emt 0:00:33]} 19. Nfd2 {[%emt 0:04:57]} g5 {[%emt 0:20:01]} 20. Bg3 {[%emt 0:00:07]} Nf8 {[%emt 0:00:03]} 21. Rfb1 {[%emt 0:06:01]} Ng6 {[%emt 0:00:20]} 22. Qd1 {[%emt 0:00:56]} Nf4 {[%emt 0:00:52]} 23. Bf1 {[%emt 0:00:06]} Nd7 {[%emt 0:01:07]} 24. Ne3 {[%emt 0:00:57]} Nf6 {[%emt 0:04:37]} 25. f3 {[%emt 0:02:11]} Qc7 {[%emt 0:02:04]} 26. Ndc4 {[%emt 0:00:49]} Bd7 {[%emt 0:00:59]} 27. Nb6 {[%emt 0:01:47]} Bb5 {[%emt 0:00:07]} (27... Kh7 $16 28. b4 h5 29. Nxd7 Nxd7) 28. c4 {[%emt 0:00:41]} Bd7 {[%emt 0:00:05]} 29. Bf2 {[%emt 0:00:14]} Kh7 {[%emt 0:03:02]} 30. b4 {[%emt 0:01:21]} cxb4 {[%emt 0:00:19]} 31. Rxb4 {[%emt 0:00:16]} Rh8 {[%emt 0:00:49]} 32. Rab1 {[%emt 0:02:07]} Bf8 {[%emt 0:00:22]} 33. Qb3 {[%emt 0:01:41]} Be8 {[%emt 0:01:21]} 34. Nf5 {[%emt 0:03:06]} h5 {[%emt 0:01:07]} 35. Na4 {[%emt 0:00:39]} hxg4 {[%emt 0:03:04]} 36. hxg4 {[%emt 0:00:04]} Bxa4 {[%emt 0:02:12]} 37. Qxa4 {[%emt 0:00:23]} Nd7 {[%emt 0:00:06] [#]} 38. Rb6 {[%emt 0:01:55]} Kg8 {[%emt 0:04:07]} (38... Kg6 $142) 39. R6b2 $1 $16 {[%emt 0:00:34]} f6 {[%emt 0:00:48]} 40. Qa3 {[%emt 0:00:00][%cal Oc4c5] Threatens to win with c5!} Nc5 {[%emt 0:00:00]} 41. Bxc5 $1 {[%emt 0:06:48]} dxc5 {[%emt 0:01:06]} 42. Qa2 {[%emt 0:01:33]} Ng6 {[%emt 0:05:52]} 43. Bg2 {[%emt 0:04:04]} (43. Rb6 $18) 43... Nf4 {[%emt 0:01:05]} (43... Nh4 $16) 44. Rb6 $18 {[%emt 0:01:14]} Qh7 {[%emt 0:00:24] aiming for ...Qh2+.} 45. Qf2 $1 {[%emt 0:00:37]} (45. Rxf6 $2 Qh2+ 46. Kf1 Nh3 $19) 45... Qh2+ {[%emt 0:05:06]} 46. Kf1 {[%emt 0:00:01]} Qh7 {[%emt 0:00:20]} 47. R1b3 {[%emt 0:00:48]} (47. Rxf6 Nxg2 $19) 47... Qd7 {[%emt 0:00:40] [#]} 48. Qa2 $1 {[%emt 0:02:28]} (48. Rxf6 Rh2 49. Ne3 Nxg2 50. Nxg2 Rh1+ 51. Ke2 Qa4 $11) 48... Rh2 {[%emt 0:00:21]} 49. Rb2 {[%emt 0:01:13]} Qh7 {[%emt 0:00:53]} (49... Qd8 $16 50. Kg1 (50. Rxb7 Rxb7 51. Rxb7 Rxg2 $11) 50... Rh7) 50. Kg1 {[%emt 0:00:51]} ({Stronger than} 50. Rxf6 Rxg2 $17) 50... Rd8 {[%emt 0:02:55] [#]} 51. Rxf6 {[%emt 0:01:09]} (51. Qb3 $1 $18 {and White stays clearly on top.}) 51... Rd7 $2 {[%emt 0:01:59]} (51... Qh8 $16) 52. Ng3 $2 {[%emt 0:00:15]} (52. Qa4 $18) 52... Qh4 $11 {[%emt 0:00:31] The position is equal.} 53. Nf1 {[%emt 0:01:00] Chess con chili.} (53. Nf5 Rxg2+ 54. Rxg2 Qe1+ 55. Kh2 Rh7+) 53... Rxg2+ {[%emt 0:01:10]} 54. Rxg2 {[%emt 0:00:07] Strongly threatening Rh2.} Nh3+ {[%emt 0:00:20]} 55. Kh1 {[%emt 0:00:22] Weighted Error Value: White=0.29 (precise) /Black=0.19 (very precise) .  Loses game:     	---       	Black=1      Missed win:     	White=1     	---        Mistake:       	White=3     	Black=5      Inaccurate:     	White=1     	Black=2      OK:         	White=19    	Black=18     Best:        	White=1     	Black=3      Strong:       	White=3     	---} 1/2-1/2

[Event "Romanian Championship 2024"]
[Site "Eforie Nord"]
[Date "2024.02.25"]
[Round "2.10"]
[White "Ognean, Mihnea-Ionut"]
[Black "Voiteanu, Gabriel"]
[Result "1-0"]
[ECO "C48"]
[WhiteElo "2382"]
[BlackElo "2151"]
[Annotator "TA"]
[PlyCount "113"]
[EventDate "2024.02.24"]
[EventType "swiss"]
[EventCountry "ROU"]
[SourceTitle "playchess.com"]
[Source "ChessBase"]
[SourceQuality "1"]
[TimeControl "40/5400+30:900+30"]

{[%evp 10,113,0,0,12,0,12,0,37,21,20,31,42,37,41,21,10,16,15,0,0,0,0,0,0,0,1,-12,19,17,24,19,23,20,56,65,56,27,67,74,72,76,71,71,104,51,60,31,34,22,25,17,23,26,33,26,30,24,35,28,83,8,8,8,8,0,351,337,395,384,441,175,140,164,150,39,287,191,182,130,566,564,510,462,941,876,835,677,1163,1447,1102,1102,1642,1527,2339,2338,2252,1850,29976,29977,29978,29979,29980,29978,29983,29984]} 1. e4 {[%emt 0:00:12]} e5 {[%emt 0:00:08]} 2. Nf3 {[%emt 0:00:24]} Nc6 {[%emt 0:00:11]} 3. Nc3 {[%emt 0:00:49]} Nf6 {[%emt 0:01:02]} 4. Bb5 {[%emt 0:00:05]} Bc5 {[%emt 0:11:54]} 5. Bxc6 {[%emt 0:00:47]} dxc6 {[%emt 0:00:47]} 6. d3 {[%emt 0:00:08]} Qe7 {[%emt 0:07:12]} 7. h3 {[%emt 0:03:06]} h6 {[%emt 0:01:45]} 8. Be3 {[%emt 0:01:44]} g5 {[%emt 0:10:11] The position is equal.} 9. Bxc5 {[%emt 0:05:16]} Qxc5 {[%emt 0:00:02]} 10. d4 {[%emt 0:04:51]} Qb4 {[%emt 0:05:30]} 11. Qd3 {[%emt 0:03:59]} ({Don't play} 11. dxe5 Qxb2 12. Ne2 Nxe4 $15) 11... exd4 {[%emt 0:02:02]} 12. Qxd4 {[%emt 0:01:06]} Qxd4 {[%emt 0:00:25]} 13. Nxd4 {[%emt 0:00:05]} Bd7 {[%emt 0:03:08]} 14. h4 {[%emt 0:07:36] Threatens to win with hxg5.} O-O-O {[%emt 0:02:28][%cal Of6e4]} 15. Nde2 {[%emt 0:05:50]} Ng4 {[%emt 0:02:51]} 16. Ng3 {[%emt 0:06:47]} Rhe8 {[%emt 0:06:27]} 17. hxg5 {[%emt 0:01:52]} hxg5 {[%emt 0:00:10]} 18. Rh5 {[%emt 0:01:55]} f6 {[%emt 0:05:02]} 19. Ke2 {[%emt 0:09:05]} Be6 {[%emt 0:03:29]} 20. b3 {[%emt 0:03:57]} Bf7 {[%emt 0:11:54]} 21. Rhh1 {[%emt 0:03:12]} c5 {[%emt 0:02:27]} 22. Rad1 {[%emt 0:04:46]} Ne5 {[%emt 0:04:23]} 23. Rxd8+ {[%emt 0:01:47]} Rxd8 {[%emt 0:00:17]} 24. Rh6 {[%emt 0:01:16]} Ng4 {[%emt 0:02:44]} 25. Rh7 {[%emt 0:02:00]} Bg8 {[%emt 0:04:01]} 26. Rg7 {[%emt 0:01:14]} Be6 {[%emt 0:06:16]} 27. f3 {[%emt 0:08:10]} (27. Re7 $1 $16 {[%cal Of2f3] Black must now prevent f3!} Bd7 28. f3) 27... Ne5 $14 {[%emt 0:00:18]} 28. Nh5 {[%emt 0:00:25]} Rd7 {[%emt 0:04:28]} 29. Rxd7 {[%emt 0:08:15]} Nxd7 {[%emt 0:00:02]} 30. Nd5 {[%emt 0:01:38]} Bxd5 {[%emt 0:00:50]} 31. exd5 $11 {[%emt 0:00:04][%mdl 4096] Endgame. KN-KN} Kd8 {[%emt 0:01:25]} 32. Ke3 {[%emt 0:00:13]} Ke7 {[%emt 0:00:48]} 33. Ke4 {[%emt 0:00:18]} b5 $1 {[%emt 0:01:11]} 34. Kf5 {[%emt 0:11:30]} Kf7 {[%emt 0:00:06] [#]} (34... a5 $11 {keeps the balance.}) 35. c4 {[%emt 0:00:56]} ({Better is} 35. Ng3 $1 $16) 35... bxc4 {[%emt 0:00:41]} 36. bxc4 {[%emt 0:00:01]} a5 {[%emt 0:00:57]} 37. g3 {[%emt 0:02:06]} Ne5 $2 {[%emt 0:00:34][%mdl 8192]} (37... Ke7 $11 {and Black stays safe.}) 38. Nxf6 $18 {[%emt 0:00:08]} Nxf3 {[%emt 0:00:15]} 39. Ne4 {[%emt 0:00:07] Dodges Nd2} Ke7 {[%emt 0:00:35]} 40. Nxc5 $2 {[%emt 0:00:00]} (40. g4) 40... Nd2 {[%emt 0:00:00]} 41. Kxg5 {[%emt 0:05:33] aiming for Nb7.} Nxc4 {[%emt 0:00:19] [#]} 42. Ne4 {[%emt 0:03:19]} (42. Nb7 $1 $16) 42... Nb6 $2 {[%emt 0:05:59]} (42... Ne3 $14) 43. Nf6 {[%emt 0:03:11] And now Kg6 would win.} Kd6 {[%emt 0:03:32]} 44. Kf5 {[%emt 0:00:08]} (44. g4 $18) 44... a4 $2 {[%emt 0:06:35][%mdl 8192] A mistake that costs the game.} (44... Nc8 $16 45. Ke4 Ne7 46. Ne8+ Kd7) 45. g4 {[%emt 0:01:05][%cal Bg3g4,Bg4g5][%mdl 32]} Nc8 {[%emt 0:00:10]} 46. Ke4 {[%emt 0:02:13] Kd4 would now be deadly.} Ne7 {[%emt 0:01:47]} (46... Ke7 $142) 47. Kd4 {[%emt 0:00:31]} Ng6 {[%emt 0:00:32]} 48. Ne4+ {[%emt 0:00:14]} Kd7 {[%emt 0:00:19]} 49. a3 {[%emt 0:01:59]} Ke7 {[%emt 0:00:36]} 50. g5 {[%emt 0:00:13]} Nh4 {[%emt 0:00:18]} 51. Kc5 {[%emt 0:00:33]} Ng6 {[%emt 0:01:01]} 52. Nc3 {[%emt 0:01:30]} Nf4 {[%emt 0:00:36]} 53. Nxa4 {[%emt 0:00:29] Kc6 is the strong threat.} Nh3 {[%emt 0:00:32]} 54. Kc6 {[%emt 0:00:28] White mates.} Nxg5 {[%emt 0:00:41]} 55. Kxc7 {[%emt 0:00:05]} Ne4 {[%emt 0:00:04]} 56. Nb6 {[%emt 0:00:10]} Nc3 {[%emt 0:00:38]} 57. a4 {[%emt 0:00:16] Weighted Error Value: White=0.18 (very precise) /Black=0.63.  Loses game:     	---       	Black=3      Mistake:       	White=5     	Black=2      Inaccurate:     	White=3     	Black=5      OK:         	White=15    	Black=11     Best:        	White=3     	Black=5      Strong:       	---       	Black=1} 1-0

[Event "Romanian Championship 2024"]
[Site "Eforie Nord"]
[Date "2024.02.25"]
[Round "2.11"]
[White "Prelipcean, Eric-Matei"]
[Black "Ilinca, Felix-Antonio"]
[Result "0-1"]
[ECO "A43"]
[WhiteElo "2103"]
[BlackElo "2415"]
[Annotator "TA"]
[PlyCount "46"]
[EventDate "2024.02.24"]
[EventType "swiss"]
[EventCountry "ROU"]
[SourceTitle "playchess.com"]
[Source "ChessBase"]
[SourceQuality "1"]
[TimeControl "40/5400+30:900+30"]

{[%evp 9,46,34,28,16,13,9,4,12,10,7,16,13,30,14,37,27,30,0,0,-56,-54,-100,-97,-95,-91,-97,-102,-112,-60,-204,-204,-191,-196,-325,-319,-325,-324,-624,-616]} 1. d4 {[%emt 0:02:52]} Nf6 {[%emt 0:01:01]} 2. Nf3 {[%emt 0:00:08]} c5 {[%emt 0:01:20]} 3. d5 {[%emt 0:00:46]} b5 {[%emt 0:00:37]} 4. Bg5 {[%emt 0:02:30]} g6 {[%emt 0:01:00]} 5. Bxf6 {[%emt 0:14:05]} exf6 {[%emt 0:00:09]} 6. e4 {[%emt 0:00:11]} b4 {[%emt 0:04:12]} 7. Nbd2 {[%emt 0:02:38] Black is weak on the light squares} Bg7 {[%emt 0:01:38]} 8. Nc4 {[%emt 0:02:10] Black should prevent Nd6+. The position is equal.} O-O {[%emt 0:01:47]} 9. Bd3 {[%emt 0:02:01]} d6 {[%emt 0:02:15]} 10. O-O {[%emt 0:07:10]} Qc7 {[%emt 0:04:01]} 11. Nfd2 {[%emt 0:02:11]} Bb7 {[%emt 0:11:56][%cal Of6f5]} 12. a3 {[%emt 0:08:11]} a5 {[%emt 0:14:08][%cal Of6f5]} 13. axb4 {[%emt 0:01:41]} cxb4 {[%emt 0:00:39]} 14. Ra4 {[%emt 0:10:48]} (14. Qg4 $11) 14... Nd7 $15 {[%emt 0:09:40][%cal Of6f5]} 15. Qa1 {[%emt 0:03:27] [#]} (15. b3 $15) 15... f5 $1 $17 {[%emt 0:03:01]} 16. Rxa5 {[%emt 0:11:28]} (16. exf5 Bxd5) 16... fxe4 {[%emt 0:05:29]} 17. Nxe4 {[%emt 0:04:52][%cal Oa5a8]} Bxd5 {[%emt 0:11:49] White must now prevent ...Ne5.} 18. Nexd6 {[%emt 0:02:27]} Qc6 {[%emt 0:06:15] Prevents Nb5} ({Black should try} 18... Nc5 $17 {[%cal Og7e5] ...Be5! is the strong threat.} 19. Rxa8 Rxa8) 19. Rxa8 {[%emt 0:10:01] Loses the game.} (19. Re1 $15) 19... Rxa8 $19 {[%emt 0:00:21]} 20. Qe1 {[%emt 0:00:29]} Bf8 {[%emt 0:03:24] This pair of bishops is nice.} ({But not} 20... Bxg2 21. Be4 Bxe4 22. Qxe4 Qxe4 23. Nxe4 $17) 21. Ne3 {[%emt 0:03:25]} (21. Qxb4 {was worth a try.} Bxc4 (21... Bxg2 22. Re1 $11) 22. Bxc4 Bxd6 (22... Qxd6 $2 23. Qxd6 Bxd6 24. Rd1 $19) 23. Qb3) 21... Bxd6 {[%emt 0:00:54]} ({Weaker is} 21... Qxd6 22. Nxd5 Qxd5 23. Be4 $17) 22. Nxd5 {[%emt 0:00:20]} Qxd5 {[%emt 0:00:07]} 23. Be4 $2 {[%emt 0:02:51] [#]} (23. Qe4 Qxe4 24. Bxe4) 23... Qe5 $1 {[%emt 0:00:16][%csl LRb2,LRh2] Weighted Error Value: White=0.53/Black=0.06 (flawless) .  Mistake:       	White=5     	Black=1      Inaccurate:     	White=1     	---        OK:         	White=4     	Black=7      Best:        	---       	Black=4      Brilliant:      	---       	Black=1} 0-1

[Event "Romanian Championship 2024"]
[Site "Eforie Nord"]
[Date "2024.02.25"]
[Round "2.12"]
[White "Secheres, Adrian-Simion"]
[Black "Coicev, Matei-Andrei"]
[Result "1/2-1/2"]
[ECO "A57"]
[WhiteElo "2371"]
[BlackElo "2122"]
[Annotator "TA"]
[PlyCount "60"]
[EventDate "2024.02.24"]
[EventType "swiss"]
[EventCountry "ROU"]
[SourceTitle "playchess.com"]
[Source "ChessBase"]
[SourceQuality "1"]
[TimeControl "40/5400+30:900+30"]

{[%evp 16,60,54,33,37,34,38,11,33,7,24,-27,13,17,20,19,22,16,16,0,12,14,0,0,39,29,34,27,49,26,17,0,0,0,0,0,0,0,0,0,0,0,0,0,0,0,0]} 1. d4 {[%emt 0:00:04]} Nf6 {[%emt 0:00:17]} 2. Nf3 {[%emt 0:00:31]} c5 {[%emt 0:00:46]} 3. d5 {[%emt 0:01:04]} b5 {[%emt 0:04:02]} 4. c4 {[%emt 0:03:20]} bxc4 {[%emt 0:03:16]} 5. Nc3 {[%emt 0:01:26]} g6 {[%emt 0:02:36]} 6. e4 {[%emt 0:01:58]} d6 {[%emt 0:01:15]} 7. Bxc4 {[%emt 0:03:28]} Bg7 {[%emt 0:02:13]} 8. O-O {[%emt 0:03:36]} O-O {[%emt 0:00:52]} 9. h3 {[%emt 0:01:08]} Ba6 {[%emt 0:06:01]} 10. Bxa6 {[%emt 0:05:29]} Nxa6 {[%emt 0:00:02]} 11. Qe2 {[%emt 0:01:05]} Nc7 {[%emt 0:01:22]} 12. Rd1 {[%emt 0:07:02]} Nd7 {[%emt 0:01:53]} 13. h4 {[%emt 0:02:37]} (13. Bf4 $142) 13... h5 {[%emt 0:11:32]} 14. Bf4 {[%emt 0:06:06]} Rb8 {[%emt 0:04:27]} 15. Rac1 {[%emt 0:08:08]} a6 {[%emt 0:06:16]} 16. e5 {[%emt 0:04:40]} dxe5 {[%emt 0:19:12]} 17. Nxe5 {[%emt 0:00:21]} Nxe5 {[%emt 0:00:24]} 18. Bxe5 {[%emt 0:00:06]} Bxe5 {[%emt 0:00:50]} 19. Qxe5 {[%emt 0:00:06]} Qd6 {[%emt 0:01:07]} 20. Qg5 {[%emt 0:03:36]} Rb4 {[%emt 0:03:45][%cal Ob4g4] Dodges Ne4} 21. Re1 {[%emt 0:02:40]} Rd4 {[%emt 0:07:09]} 22. Ne4 {[%emt 0:06:29]} ({Much worse is} 22. Rxe7 Nxd5 23. Nxd5 Rxd5 $15) (22. Qxe7 {simplifies} Qxe7 23. Rxe7 Nxd5 24. Nxd5 Rxd5 25. Rc2) 22... Qd8 {[%emt 0:03:25]} 23. d6 {[%emt 0:01:58] The position is equal.} (23. Rxc5 {simplifies} Rxd5 24. Rxd5 Nxd5 25. Rd1) 23... exd6 {[%emt 0:03:39]} 24. Nf6+ {[%emt 0:00:18]} Kg7 {[%emt 0:00:06]} 25. Nxh5+ {[%emt 0:02:13]} Kg8 {[%emt 0:01:15] [#] Hoping for ...Qxg5.} 26. Nf6+ {[%emt 0:17:42]} Kg7 {[%emt 0:00:05]} 27. Re7 {[%emt 0:01:49]} Ne6 $1 {[%emt 0:02:24]} 28. Nh5+ $1 {[%emt 0:01:00]} Kg8 $1 {[%emt 0:01:03]} 29. Nf6+ {[%emt 0:00:45]} Kg7 {[%emt 0:00:04]} 30. Nh5+ $1 {[%emt 0:00:29]} Kg8 $1 {[%emt 0:00:06] Weighted Error Value: White=0.10 (very precise) /Black=0.08 (flawless) .  Mistake:       	White=1     	---        Inaccurate:     	White=2     	Black=2      OK:         	White=9     	Black=7      Best:        	White=1     	Black=4      Strong:       	White=2     	Black=3} 1/2-1/2